{"text_format":"1","workbook":"xlsx","n_sheets":1,"sheets":["Hoja1"],"not_rendered":{"charts":0,"images":0,"macros":1,"external_links":0,"defined_names":0,"comments":0,"pivot_tables":0},"unopened":[],"bounds":{"document_bytes":16777216,"sheet_cells":100000,"rows_first":2000,"rows_last":500,"rows_between":2000,"halvings":0,"cell_chars":16384,"cell_head_chars":4096},"cells_cut":0,"cells_raw":0,"read":"whole","date_system":"1900"}

{"sheet":"Hoja1","index":0,"n_rows":34,"n_cols":6,"rows_kept":34,"cut":false,"hidden":false,"merged":[]}
[null,"mes","año","dato","dato2","fecha"]
[null,"noviembre",2018,null,null,{"$f":"DATE(Tabla1[[#This Row],[año]],MesANum(Tabla1[[#This Row],[mes]]),1)","v":"2018-11-01"}]
[null,"octubre",2018,null,null,{"$f":"DATE(Tabla1[[#This Row],[año]],MesANum(Tabla1[[#This Row],[mes]]),1)","v":"2018-10-01"}]
[null,"noviembre",2018,null,null,{"$f":"DATE(Tabla1[[#This Row],[año]],MesANum(Tabla1[[#This Row],[mes]]),1)","v":"2018-11-01"}]
[null,"mayo",2018,null,null,{"$f":"DATE(Tabla1[[#This Row],[año]],MesANum(Tabla1[[#This Row],[mes]]),1)","v":"2018-05-01"}]
[null,"septiembre",2018,null,null,{"$f":"DATE(Tabla1[[#This Row],[año]],MesANum(Tabla1[[#This Row],[mes]]),1)","v":"2018-09-01"}]
[null,"noviembre",2018,null,null,{"$f":"DATE(Tabla1[[#This Row],[año]],MesANum(Tabla1[[#This Row],[mes]]),1)","v":"2018-11-01"}]
[null,"diciembre",2018,null,null,{"$f":"DATE(Tabla1[[#This Row],[año]],MesANum(Tabla1[[#This Row],[mes]]),1)","v":"2018-12-01"}]
[null,"marzo",2018,null,null,{"$f":"DATE(Tabla1[[#This Row],[año]],MesANum(Tabla1[[#This Row],[mes]]),1)","v":"2018-03-01"}]
[null,"junio",2018,null,null,{"$f":"DATE(Tabla1[[#This Row],[año]],MesANum(Tabla1[[#This Row],[mes]]),1)","v":"2018-06-01"}]
[null,"noviembre",2018,null,null,{"$f":"DATE(Tabla1[[#This Row],[año]],MesANum(Tabla1[[#This Row],[mes]]),1)","v":"2018-11-01"}]
[null,"abril",2018,null,null,{"$f":"DATE(Tabla1[[#This Row],[año]],MesANum(Tabla1[[#This Row],[mes]]),1)","v":"2018-04-01"}]
[null,"agosto",2018,null,null,{"$f":"DATE(Tabla1[[#This Row],[año]],MesANum(Tabla1[[#This Row],[mes]]),1)","v":"2018-08-01"}]
[null,"octubre",2018,null,null,{"$f":"DATE(Tabla1[[#This Row],[año]],MesANum(Tabla1[[#This Row],[mes]]),1)","v":"2018-10-01"}]
[null,"diciembre",2018,null,null,{"$f":"DATE(Tabla1[[#This Row],[año]],MesANum(Tabla1[[#This Row],[mes]]),1)","v":"2018-12-01"}]
[null,"abril",2018,null,null,{"$f":"DATE(Tabla1[[#This Row],[año]],MesANum(Tabla1[[#This Row],[mes]]),1)","v":"2018-04-01"}]
[null,"septiembre",2018,null,null,{"$f":"DATE(Tabla1[[#This Row],[año]],MesANum(Tabla1[[#This Row],[mes]]),1)","v":"2018-09-01"}]
[null,"octubre",2018,null,null,{"$f":"DATE(Tabla1[[#This Row],[año]],MesANum(Tabla1[[#This Row],[mes]]),1)","v":"2018-10-01"}]
[null,"diciembre",2018,null,null,{"$f":"DATE(Tabla1[[#This Row],[año]],MesANum(Tabla1[[#This Row],[mes]]),1)","v":"2018-12-01"}]
[null,"enero",2018,null,null,{"$f":"DATE(Tabla1[[#This Row],[año]],MesANum(Tabla1[[#This Row],[mes]]),1)","v":"2018-01-01"}]
[null,"agosto",2018,null,null,{"$f":"DATE(Tabla1[[#This Row],[año]],MesANum(Tabla1[[#This Row],[mes]]),1)","v":"2018-08-01"}]
[null,"agosto",2018,null,null,{"$f":"DATE(Tabla1[[#This Row],[año]],MesANum(Tabla1[[#This Row],[mes]]),1)","v":"2018-08-01"}]
[null,"enero",2018,null,null,{"$f":"DATE(Tabla1[[#This Row],[año]],MesANum(Tabla1[[#This Row],[mes]]),1)","v":"2018-01-01"}]
[null,"septiembre",2018,null,null,{"$f":"DATE(Tabla1[[#This Row],[año]],MesANum(Tabla1[[#This Row],[mes]]),1)","v":"2018-09-01"}]
[null,"mayo",2018,null,null,{"$f":"DATE(Tabla1[[#This Row],[año]],MesANum(Tabla1[[#This Row],[mes]]),1)","v":"2018-05-01"}]
[null,"mayo",2018,null,null,{"$f":"DATE(Tabla1[[#This Row],[año]],MesANum(Tabla1[[#This Row],[mes]]),1)","v":"2018-05-01"}]
[null,"enero",2018,null,null,{"$f":"DATE(Tabla1[[#This Row],[año]],MesANum(Tabla1[[#This Row],[mes]]),1)","v":"2018-01-01"}]
[null,"octubre",2018,null,null,{"$f":"DATE(Tabla1[[#This Row],[año]],MesANum(Tabla1[[#This Row],[mes]]),1)","v":"2018-10-01"}]
[null,"enero",2018,null,null,{"$f":"DATE(Tabla1[[#This Row],[año]],MesANum(Tabla1[[#This Row],[mes]]),1)","v":"2018-01-01"}]
[null,"julio",2018,null,null,{"$f":"DATE(Tabla1[[#This Row],[año]],MesANum(Tabla1[[#This Row],[mes]]),1)","v":"2018-07-01"}]
[null,"abril",2018,null,null,{"$f":"DATE(Tabla1[[#This Row],[año]],MesANum(Tabla1[[#This Row],[mes]]),1)","v":"2018-04-01"}]
[null,"septiembre",2018,null,null,{"$f":"DATE(Tabla1[[#This Row],[año]],MesANum(Tabla1[[#This Row],[mes]]),1)","v":"2018-09-01"}]
[null,"febrero",2018,null,null,{"$f":"DATE(Tabla1[[#This Row],[año]],MesANum(Tabla1[[#This Row],[mes]]),1)","v":"2018-02-01"}]
[null,"agosto",2018,null,null,{"$f":"DATE(Tabla1[[#This Row],[año]],MesANum(Tabla1[[#This Row],[mes]]),1)","v":"2018-08-01"}]